bitfinex-derivatives/quotes_ETHF0:USTF0_20241102
["timestamp","ask_amount","ask_price","bid_price","bid_amount"]
[1730538923920,3.06012018,2501.1,2501.0,0.6247561]
[1730538924737,3.06012018,2501.1,2500.9,0.27999]
[1730538925029,3.06012018,2501.1,2501.0,0.62474792]
[1730538925524,7.70857036,2501.1,2501.0,0.62474792]
[1730538925725,0.27999,2501.0,2500.8,0.28]
[1730538925917,1.44065018,2500.9,2500.8,0.28]
[1730538926121,1.44065018,2500.9,2500.8,0.90471716]
[1730538927927,1.72064018,2500.9,2500.8,0.90471716]
[1730538928621,1.44065018,2500.9,2500.8,0.90471716]
[1730538928822,1.44065018,2500.9,2500.7,0.4374]
[1730538929022,1.72065018,2500.9,2500.7,0.71741]
[1730538929229,0.4556,2500.8,2500.7,0.71741]
[1730538929418,0.4556,2500.8,2500.7,1.34180769]
[1730538930423,1.44065018,2500.9,2500.8,0.28]
[1730538930627,1.44065018,2500.9,2500.8,0.90439769]
[1730538931334,1.44065018,2500.9,2500.8,0.28]
[1730538931526,1.44065018,2500.9,2500.8,0.9041433]
[1730538931731,1.44065018,2500.9,2500.8,0.28]
[1730538932234,1.44065018,2500.9,2500.8,0.90413511]
[1730538932928,1.44065018,2500.9,2500.8,0.28]
[1730538933626,1.44065018,2500.9,2500.8,0.90409707]
[1730538934023,1.44065018,2500.9,2500.8,0.28]
[1730538934226,1.86015018,2500.9,2500.8,0.28]
[1730538937234,1.86015018,2500.9,2500.8,0.90413748]
[1730538937439,1.86015018,2500.9,2500.8,0.28]
[1730538938436,1.86015018,2500.9,2500.8,0.9042283]
[1730538939237,1.44065018,2501.3,2501.2,0.27995]
[1730538939537,1.44065018,2501.3,2501.2,0.90422048]
[1730538940131,1.44065018,2501.3,2501.0,2.01437]
[1730538940336,1.44065018,2501.1,2501.0,2.01437]
[1730538940643,1.44065018,2501.1,2501.0,3.63750407]
[1730538940945,1.87785018,2501.1,2501.0,7.63590407]
[1730538941235,1.87785018,2501.1,2501.0,3.63750407]
[1730538941538,1.87785018,2501.1,2501.0,7.63590407]
[1730538941741,1.87785018,2501.1,2501.0,3.63750407]
[1730538941942,1.44065018,2501.2,2501.1,0.27997]
[1730538942141,3.48774,2501.4,2501.3,0.27994]
[1730538942142,1.44065018,2501.4,2501.3,0.27994]
[1730538942343,1.44065018,2501.4,2501.3,0.90422233]
[1730538945342,1.44065018,2501.4,2501.3,0.62428233]
[1730538945540,1.72059018,2501.4,2501.3,0.62428233]
[1730538947239,1.72059018,2501.4,2501.3,0.62487966]
[1730538947747,4.92839018,2501.4,2501.3,0.62487966]
[1730538949438,1.44065018,2501.4,2501.3,0.90482966]
[1730538949639,1.44065018,2501.4,2501.3,1.90506289]
[1730538950647,1.44065018,2501.4,2501.3,0.27995]
[1730538950847,1.44065018,2501.4,2501.3,1.90545462]
[1730538953942,1.44065018,2501.4,2501.3,2.03049199]
[1730538954141,1.44065018,2501.4,2501.3,2.03049134]
[1730538956753,1.44065018,2501.4,2501.3,0.27995]
[1730538956955,1.44065018,2501.4,2501.3,0.40498669]
[1730538957252,1.44065018,2501.4,2501.3,3.65594065]
[1730538957843,1.44065018,2501.4,2501.3,3.6559252]
[1730538959757,1.44065018,2501.7,2501.4,0.27994]
[1730538960056,1.44065018,2501.7,2501.6,0.27991]
[1730538960259,1.44065018,2501.7,2501.6,1.90537264]
[1730538960853,1.44065018,2501.7,2501.6,0.27991]
[1730538961058,1.44065018,2501.7,2501.6,1.90507695]
[1730538961257,1.44065018,2501.7,2501.6,2.03009852]
[1730538962856,1.44065018,2501.7,2501.6,1.75018852]
[1730538963049,1.72055018,2501.7,2501.6,1.62516695]
[1730538964053,1.44065018,2501.7,2501.6,1.62457952]
[1730538964260,1.44065018,2501.7,2501.5,1.12682]
[1730538964457,1.44065018,2501.7,2501.6,0.90460949]
[1730538964662,1.44065018,2501.7,2501.6,1.90399427]
[1730538964968,1.44065018,2501.7,2501.6,2.02901316]
[1730538965158,1.44065018,2501.7,2501.6,2.0290137]
[1730538965357,1.44065018,2501.7,2501.6,1.90399427]
[1730538967365,1.44065018,2501.7,2501.6,0.27991]
[1730538967560,1.44065018,2501.7,2501.6,1.90284342]
[1730538969467,1.44065018,2501.7,2501.6,0.90411516]
[1730538970459,1.44065018,2501.7,2501.6,1.90255188]
[1730538970665,1.44065018,2501.7,2501.6,0.90411516]
[1730538970866,1.44065018,2501.7,2501.6,0.27991]
[1730538971068,1.44065018,2501.7,2501.6,0.90393946]
[1730538971268,1.44065018,2501.7,2501.6,0.90394903]
[1730538973466,1.44065018,2501.7,2501.6,1.90229341]
[1730538973668,1.44065018,2501.7,2501.6,0.90394903]
[1730538974469,1.44065018,2501.7,2501.6,1.90232947]
[1730538974669,1.44065018,2501.7,2501.6,0.27991]
[1730538974857,1.44065018,2501.7,2501.6,0.62402694]
[1730538975058,1.44065018,2501.7,2501.5,0.27992]
[1730538975263,1.44065018,2501.6,2501.5,0.27992]
[1730538975458,1.44065018,2501.6,2501.5,1.90244972]
[1730538975964,1.44065018,2501.7,2501.6,0.27991]
[1730538976164,1.44065018,2501.7,2501.6,0.90395989]
[1730538978272,1.44065018,2501.7,2501.6,0.27991]
[1730538978466,1.44065018,2501.7,2501.6,0.90412493]
[1730538979063,1.44065018,2501.7,2501.6,1.90294888]
[1730538981468,0.9214,2501.9,2501.8,0.27989]
[1730538981660,0.9214,2501.9,2501.8,1.9029853]
[1730538984366,0.9214,2501.9,2501.8,2.02852571]
[1730538984671,0.4227,2502.0,2501.9,0.27988]
[1730538984976,0.4227,2502.0,2501.9,2.02851571]
[1730538985871,0.4227,2502.0,2501.9,2.02817405]
[1730538986475,3.2078,2502.3,2502.2,0.27985]
[1730538986776,3.2078,2502.3,2502.2,3.46810788]
[1730538986976,3.2078,2502.3,2502.2,4.71620256]
[1730538987166,3.2078,2502.3,2502.2,8.71299744]
[1730538987364,3.2078,2502.3,2502.2,7.47232442]
[1730538987568,3.2078,2502.3,2502.2,6.02425258]
[1730538987771,3.2078,2502.3,2502.2,7.27191125]
[1730538987978,3.2078,2502.3,2502.2,7.14692557]
[1730538988172,3.2078,2502.3,2502.2,7.2719136]
[1730538988372,3.2078,2502.3,2502.2,6.02425493]
[1730538989087,3.2078,2502.3,2502.2,2.02628296]
[1730538989271,3.2078,2502.3,2502.2,2.74629339]
[1730538991580,3.2078,2502.3,2502.2,1.74848207]
[1730538992571,3.2078,2502.3,2502.2,1.12485]
[1730538992769,3.2078,2502.3,2502.2,1.74821904]
[1730538993784,1.88125018,2502.4,2502.3,0.27984]
[1730538994078,1.88125018,2502.4,2502.3,0.90320904]
[1730538994780,1.88125018,2502.4,2502.3,0.90311272]
[1730538996589,1.88125018,2502.4,2502.3,0.62327272]
[1730538996881,1.88125018,2502.4,2502.2,0.27984]
[1730538997076,1.44065018,2502.3,2502.2,0.27984]
[1730538997377,1.44065018,2502.3,2502.2,0.90313038]
[1730538999575,1.44065018,2502.3,2502.2,0.27984]
[1730538999880,1.44065018,2502.3,2502.2,0.90312283]
[1730539000079,1.88125018,2502.4,2502.3,0.27984]
[1730539000274,1.88125018,2502.4,2502.3,0.90312283]
[1730539001175,0.4406,2502.4,2502.3,0.90312283]
[1730539001881,0.4406,2502.4,2502.3,1.35502283]
[1730539003174,0.4406,2502.4,2502.3,0.73174]
[1730539003370,0.4406,2502.4,2502.3,1.35501995]
[1730539006673,0.4406,2502.4,2502.3,1.35515006]
[1730539007183,0.4406,2502.4,2502.3,0.73174]
[1730539007479,0.4406,2502.4,2502.3,1.35519442]
[1730539008885,0.4406,2502.4,2502.3,0.90329442]
[1730539010385,0.4406,2502.4,2502.3,0.90339112]
[1730539013881,0.4406,2502.4,2502.3,0.27984]
[1730539014287,0.4406,2502.4,2502.3,0.90359797]
[1730539017986,0.4406,2502.4,2502.3,0.90379094]
[1730539019487,0.4406,2502.4,2502.3,1.9022749]
[1730539020188,0.4406,2502.4,2502.3,0.27984]
[1730539020483,0.4406,2502.4,2502.3,1.90235848]
[1730539020787,0.4406,2502.4,2502.3,1.90250261]
[1730539023496,3.2078,2502.5,2502.2,0.4304]
[1730539023784,3.2078,2502.5,2502.4,0.27982]
[1730539023980,3.2078,2502.5,2502.4,0.90399787]
[1730539024178,3.2078,2502.5,2502.4,1.32749787]
[1730539024381,3.2078,2502.9,2502.8,0.27978]
[1730539024577,3.00901018,2503.0,2502.8,0.27978]
[1730539024786,3.9952,2502.9,2502.8,0.27978]
[1730539024986,2.72925018,2503.0,2502.8,0.90393045]
[1730539025188,3.9952,2502.9,2502.8,0.27978]
[1730539025390,3.9952,2502.9,2502.8,0.90400999]
[1730539027086,8.64365018,2502.9,2502.8,0.27978]
[1730539027390,8.92342018,2502.9,2502.8,0.90410773]
[1730539027586,8.64365018,2502.9,2502.4,1.12307]
[1730539027892,4.92823018,2502.9,2502.7,0.27978]
[1730539028098,4.92823018,2502.9,2502.8,0.62451287]
[1730539028404,4.92823018,2502.9,2502.8,0.90429287]
[1730539028594,8.64365018,2502.9,2502.8,0.90429287]
[1730539028992,8.92342018,2502.9,2502.8,0.90429287]
[1730539029883,8.92342018,2502.9,2502.8,0.62451287]
[1730539030282,8.92342018,2502.9,2502.8,0.90429287]
[1730539030890,8.64365018,2502.9,2502.8,0.90460027]
[1730539031093,9.07245018,2502.9,2502.8,1.90424857]
[1730539031394,9.07245018,2502.9,2502.8,0.90460027]
[1730539031891,9.07245018,2502.9,2502.8,1.90439762]
[1730539032695,9.35222018,2502.9,2502.8,1.90439762]
[1730539032897,5.35702018,2502.9,2502.8,1.90439762]
[1730539033105,5.07725018,2502.9,2502.8,1.90439762]
[1730539033692,5.35702018,2502.9,2502.8,1.90439762]
[1730539034190,9.35222018,2502.9,2502.8,1.90439762]
[1730539034390,9.07245018,2502.9,2502.8,1.9044621]
[1730539034593,5.07725018,2502.9,2502.8,1.9044621]
[1730539034997,9.35222018,2502.9,2502.8,1.9044621]
[1730539035901,5.35702018,2502.9,2502.8,1.9044621]
[1730539036199,9.35222018,2502.9,2502.8,1.9044621]
[1730539037091,5.07725018,2502.9,2502.8,1.9044621]
[1730539037796,5.07725018,2502.9,2502.8,1.90449897]
[1730539037797,3.91637,2502.9,2502.8,1.90449897]
[1730539038097,3.6366,2502.9,2502.8,1.90449897]
[1730539038505,3.6366,2502.9,2502.8,0.27978]
[1730539039400,3.2078,2502.9,2502.8,0.27978]
[1730539040498,3.48757,2502.9,2502.8,0.27978]
[1730539041492,0.27978,2502.8,2502.7,0.73899]
[1730539041898,0.27978,2502.8,2502.7,0.27979]
[1730539042197,8.84151463,2502.9,2502.4,0.4505]
[1730539042398,3.48761,2502.6,2502.5,0.27981]
[1730539043304,3.48761,2502.6,2502.4,0.73032]
[1730539043505,3.48761,2502.6,2502.5,0.27981]
[1730539043705,3.2078,2502.6,2502.5,0.27981]
[1730539043905,3.4876,2502.6,2502.5,0.27981]
[1730539044596,3.4876,2502.6,2502.4,0.73032]
[1730539045504,3.4876,2502.6,2502.5,2.99970042]
[1730539045703,3.2078,2502.6,2502.5,2.99970042]
[1730539046003,3.2078,2502.6,2502.5,8.91613373]
[1730539046196,3.2078,2502.6,2502.5,9.36523373]
[1730539048603,0.72867,2502.9,2502.7,0.27978]
[1730539048811,0.72867,2502.9,2502.8,1.62483773]
[1730539048998,0.72867,2502.9,2502.8,2.08222423]
[1730539049407,0.72867,2502.9,2502.8,2.36200423]
[1730539050303,0.4489,2502.9,2502.8,2.36200423]
[1730539051596,0.72867,2502.9,2502.8,2.36200423]
[1730539052415,0.72867,2502.9,2502.8,1.90440423]
[1730539052710,0.72867,2502.9,2502.8,1.62462423]
[1730539053311,0.72867,2502.9,2502.8,1.90440423]
[1730539054002,3.93647,2502.9,2502.8,1.62462423]
[1730539054400,3.93647,2502.9,2502.8,1.90440423]
[1730539055011,0.72867,2502.9,2502.8,1.90440423]
[1730539055208,3.93647,2502.9,2502.8,1.90440423]
[1730539058412,3.6567,2502.9,2502.8,1.90440423]
[1730539058612,3.93647,2502.9,2502.8,1.90440423]
[1730539059613,0.72867,2502.9,2502.8,1.90440423]
[1730539059816,3.93647,2502.9,2502.8,1.90440423]
[1730539060406,3.6567,2502.9,2502.8,1.90440423]
[1730539060610,3.6567,2502.9,2502.8,0.27978]
[1730539061119,3.93647,2502.9,2502.8,0.27978]
[1730539061315,3.6567,2502.9,2502.8,0.27978]
[1730539061518,3.2078,2502.9,2502.8,0.27978]
[1730539061815,3.2078,2502.9,2502.8,2.34527085]
[1730539062813,3.2078,2502.9,2502.8,1.72043018]
[1730539063009,3.2078,2502.9,2502.8,2.34526789]
[1730539063512,3.2078,2502.9,2502.8,1.72043018]
[1730539064721,0.71615,2503.1,2502.9,0.27976]
[1730539064922,0.71615,2503.1,2502.9,0.71336]
[1730539065325,3.2078,2503.0,2502.9,0.71336]
[1730539068521,3.2078,2503.0,2502.9,3.58760787]
[1730539068726,3.2078,2503.0,2502.9,3.71257516]
[1730539069721,3.2078,2503.0,2502.9,0.71336]
[1730539069923,3.2078,2503.0,2502.9,3.71257905]
[1730539070322,3.2078,2503.0,2502.9,3.58754741]
[1730539070525,3.2078,2503.0,2502.9,3.71251208]
[1730539071115,0.8629,2503.2,2503.1,0.27975]
[1730539071321,0.8629,2503.2,2503.1,2.02925538]
[1730539071522,0.8629,2503.2,2503.1,3.27881959]
[1730539073416,0.8629,2503.2,2503.1,3.2787112]
[1730539074233,0.8629,2503.2,2503.1,2.02914403]
[1730539075635,0.8629,2503.2,2503.1,0.27975]
[1730539082651,0.8629,2503.2,2503.1,1.90417907]
[1730539083358,0.8629,2503.2,2503.1,1.90417335]
[1730539086955,2.08255239,2503.6,2503.1,1.90417335]
[1730539086956,3.2078,2503.7,2503.6,0.27969]
[1730539087146,3.2078,2503.7,2503.6,0.90445052]
[1730539087549,3.2078,2503.7,2503.6,2.75389821]
[1730539089560,0.8956,2503.9,2503.6,2.47420821]
[1730539089756,0.8956,2503.9,2503.8,0.27967]
[1730539089949,0.8956,2503.9,2503.8,0.90443052]
[1730539090161,0.4494,2503.9,2503.8,0.90443052]
[1730539090461,0.4494,2503.9,2503.8,0.90426945]
[1730539090653,3.6309,2504.0,2503.8,0.27967]
[1730539091057,3.91055,2504.0,2503.9,0.4246]
[1730539091860,5.07155018,2504.0,2503.5,1.44065018]
[1730539092055,1.72034018,2503.6,2503.4,0.73021]
[1730539092362,0.8866,2503.5,2503.4,0.73021]
[1730539092951,0.8866,2503.5,2503.4,2.17086018]
[1730539093152,3.2078,2503.7,2503.6,0.27969]
[1730539093363,3.6591,2503.7,2503.6,0.27969]
[1730539093963,0.4513,2503.7,2503.6,0.27969]
[1730539094864,0.8799,2503.7,2503.6,0.27969]
[1730539102459,0.8799,2503.7,2503.6,0.90430925]
[1730539102658,0.4513,2503.7,2503.6,0.27969]
[1730539102871,0.4513,2503.7,2503.6,0.90431827]
[1730539104670,0.4513,2503.7,2503.6,0.27969]
[1730539104974,0.4513,2503.7,2503.6,0.90431522]
[1730539105272,0.4513,2503.7,2503.6,0.27969]
[1730539105461,0.4513,2503.7,2503.6,0.90431604]
[1730539106375,3.2078,2503.9,2503.8,0.27967]
[1730539107075,3.6593,2503.9,2503.8,0.27967]
[1730539108272,3.2078,2503.9,2503.8,2.34490438]
[1730539108473,3.2078,2503.9,2503.8,1.72032018]
[1730539108668,3.2078,2503.9,2503.8,2.34489559]
[1730539108868,3.2078,2503.9,2503.8,1.72032018]
[1730539110276,3.2078,2503.9,2503.8,2.34490948]
[1730539110571,3.2078,2503.9,2503.8,1.72032018]
[1730539110777,3.2078,2503.9,2503.8,2.34490751]
[1730539110979,3.2078,2503.9,2503.8,1.72032018]
[1730539111275,3.2078,2503.9,2503.8,2.34490819]
[1730539111775,3.2078,2503.9,2503.8,2.34491448]
[1730539112167,3.2078,2503.9,2503.8,2.34490853]
[1730539112771,3.2078,2503.9,2503.8,1.72032018]
[1730539114270,0.70184,2504.1,2503.8,1.72032018]
[1730539114271,3.2078,2504.0,2503.8,1.72032018]
[1730539115484,0.70184,2504.1,2503.8,1.72032018]
[1730539115784,3.48745,2504.0,2503.8,0.27967]
[1730539116384,0.27965,2504.0,2503.8,0.27967]
[1730539116577,3.48745,2504.0,2503.8,0.27967]
[1730539116777,3.48745,2504.0,2503.7,3.01332018]
[1730539116778,0.27966,2503.9,2503.7,3.01332018]
[1730539116978,0.4335,2503.8,2503.7,3.01332018]
[1730539117173,1.3132,2503.8,2503.7,2.28265018]
[1730539117381,1.59287,2503.8,2503.7,0.842]
[1730539118284,1.3132,2503.8,2503.7,0.842]
[1730539118585,3.2078,2504.0,2503.7,2.28265018]
[1730539118781,3.48745,2504.0,2503.8,0.27966]
[1730539119090,0.4331,2503.9,2503.8,0.27966]
[1730539119281,0.4331,2503.9,2503.8,0.74026]
[1730539121088,0.4331,2503.9,2503.8,1.36486145]
[1730539124487,0.4331,2503.9,2503.8,2.36420249]
[1730539124987,0.4331,2503.9,2503.8,1.36486145]
[1730539125291,0.4331,2503.9,2503.8,2.36420862]
[1730539127989,0.4331,2503.9,2503.8,0.74026]
[1730539135296,3.2078,2504.0,2503.9,0.27966]
[1730539135499,3.2078,2504.0,2503.9,2.26453008]
[1730539136087,3.2078,2504.0,2503.9,5.33738057]
[1730539137500,0.27964,2504.1,2503.9,5.33738057]
[1730539137799,0.27964,2504.1,2504.0,2.99791047]
[1730539137998,3.48744,2504.1,2504.0,2.99791047]
[1730539138401,0.27964,2504.1,2504.0,2.99791047]
[1730539138696,0.27964,2504.1,2504.0,2.99792516]
[1730539139106,3.48744,2504.1,2504.0,2.99792516]
[1730539139305,3.48744,2504.1,2504.0,2.99794268]
[1730539140204,3.48744,2504.1,2504.0,3.27759268]
[1730539141099,3.48744,2504.1,2504.0,2.99794268]
[1730539141304,3.48744,2504.1,2504.0,1.74879989]
[1730539141508,0.27965,2504.0,2503.9,0.27965]
[1730539141807,0.27965,2504.0,2503.9,3.2776595]
[1730539142105,3.2078,2504.0,2503.9,3.2776595]
[1730539142498,3.2078,2504.0,2503.9,3.47752605]
[1730539143204,0.27964,2504.1,2503.9,3.47752605]
[1730539143402,0.27964,2504.1,2504.0,2.9980095]
[1730539143601,3.48744,2504.1,2504.0,3.2776595]
[1730539144106,3.48744,2504.1,2504.0,2.9980095]
[1730539145602,3.48744,2504.1,2504.0,1.74883887]
[1730539145807,9.03200445,2504.1,2504.0,1.74883822]
[1730539146304,9.03200445,2504.1,2504.0,1.74884037]
[1730539146696,9.03200445,2504.1,2504.0,1.62392181]
[1730539146897,9.03200445,2504.1,2504.0,1.74884185]
[1730539147400,9.03200445,2504.1,2504.0,1.62392181]
[1730539147610,9.0322631,2504.1,2504.0,1.62392181]
[1730539147801,4.83894,2504.1,2504.0,1.62392181]
[1730539148403,4.83894,2504.1,2504.0,1.74884361]
[1730539148911,4.5593,2504.1,2503.9,0.27965]
[1730539149112,0.27965,2504.0,2503.9,0.27965]
[1730539149407,3.48745,2504.0,2503.9,3.27778339]
[1730539150308,3.48745,2504.0,2503.9,1.90363892]
[1730539150610,0.27965,2504.0,2503.9,1.90363892]
[1730539150913,3.48745,2504.0,2503.9,1.90363892]
[1730539151109,0.27965,2504.0,2503.9,1.90363892]
[1730539151597,3.48745,2504.0,2503.9,1.74891071]
[1730539151805,3.48745,2504.0,2503.9,1.74890727]
[1730539152011,3.48745,2504.0,2503.9,1.62398892]
[1730539152310,3.48745,2504.0,2503.9,1.74890818]
[1730539152610,3.48745,2504.0,2503.9,1.74890673]
[1730539153097,3.48745,2504.0,2503.9,1.62392922]
[1730539156312,3.48745,2504.0,2503.8,0.27967]
[1730539156313,3.2078,2504.0,2503.8,0.27967]
[1730539156508,0.27966,2503.9,2503.8,0.27967]
[1730539156707,0.27966,2503.9,2503.8,1.74895636]
[1730539157307,0.27966,2503.9,2503.8,2.02862636]
[1730539157601,0.27966,2503.9,2503.8,1.74895636]
[1730539157807,3.2078,2504.0,2503.9,0.27966]
[1730539158009,3.2078,2504.0,2503.9,1.90369091]
[1730539158206,3.2078,2504.0,2503.9,3.15282584]
[1730539158512,3.48745,2504.0,2503.9,3.73894499]
[1730539159318,0.27965,2504.0,2503.9,3.73894499]
[1730539159514,3.48745,2504.0,2503.9,3.73894499]
[1730539160108,3.48745,2504.0,2503.9,3.73894588]
[1730539161105,0.27965,2504.0,2503.9,3.73894588]
[1730539161508,3.48745,2504.0,2503.9,3.73894588]
[1730539162420,0.27965,2504.0,2503.9,3.73894588]
[1730539162916,3.48745,2504.0,2503.9,3.73894588]
[1730539164020,3.48745,2504.0,2503.9,3.73890853]
[1730539164212,0.27965,2504.0,2503.9,3.73890853]
[1730539164419,0.27965,2504.0,2503.9,0.74086]
[1730539164621,0.27965,2504.0,2503.9,3.45925076]
[1730539164919,0.27965,2504.0,2503.9,2.99805076]
[1730539165211,0.27965,2504.0,2503.9,1.74886294]
[1730539165421,0.27965,2504.0,2503.9,1.62394416]
[1730539166219,0.27965,2504.0,2503.9,1.90360416]
[1730539166819,0.27965,2504.0,2503.9,1.90364395]
[1730539167012,0.27965,2504.0,2503.9,2.02856462]
[1730539167215,0.27965,2504.0,2503.9,1.74890462]
[1730539167414,0.27965,2504.0,2503.9,1.62398395]
[1730539168022,0.27965,2504.0,2503.9,1.62399081]
[1730539168209,3.48745,2504.0,2503.9,1.90365081]
[1730539168412,3.48745,2504.0,2503.9,1.62399081]
[1730539168715,3.48745,2504.0,2503.9,1.90365081]
[1730539169423,0.27965,2504.0,2503.9,1.90365081]
[1730539169723,3.48745,2504.0,2503.9,1.90365081]
[1730539170216,3.48745,2504.0,2503.9,1.62399081]
[1730539170724,3.48745,2504.0,2503.9,1.90365081]
[1730539171425,3.48745,2504.0,2503.9,1.62399081]
[1730539171818,3.48745,2504.0,2503.9,2.02857018]
[1730539172014,3.48745,2504.0,2503.9,1.90365081]
[1730539172523,3.48745,2504.0,2503.9,1.62399081]
[1730539172822,3.48745,2504.0,2503.9,1.7489089]
[1730539173018,3.48745,2504.0,2503.9,1.90365081]
[1730539173231,3.48745,2504.0,2503.9,2.02857189]
[1730539173425,3.48745,2504.0,2503.9,3.27774034]
[1730539173722,3.48745,2504.0,2503.9,0.27966]
[1730539174217,3.48745,2504.0,2503.9,0.40457572]
[1730539174419,3.48745,2504.0,2503.9,2.15339587]
[1730539174623,3.48745,2504.0,2503.9,0.90423862]
[1730539174823,3.48745,2504.0,2503.7,0.4241]
[1730539174824,3.2078,2504.0,2503.8,0.27966]
[1730539175018,3.48745,2504.0,2503.8,0.27966]
[1730539175320,3.48745,2504.0,2503.8,0.27967]
[1730539175914,3.48745,2504.0,2503.7,0.4241]
[1730539176120,0.27966,2503.9,2503.8,0.27966]
[1730539176316,3.2078,2504.0,2503.7,0.4241]
[1730539176522,3.48745,2504.0,2503.9,0.27966]
[1730539177027,3.48745,2504.0,2503.9,2.99799566]
[1730539177224,3.48745,2504.0,2503.9,3.27765566]
[1730539177427,3.48745,2504.0,2503.9,2.99799566]
[1730539178326,3.48745,2504.0,2503.8,0.27966]
[1730539178821,0.27966,2503.9,2503.8,0.27966]
[1730539179027,3.48745,2504.0,2503.8,0.27966]
[1730539179220,3.48745,2504.0,2503.8,0.27967]
[1730539179621,3.48745,2504.0,2503.9,2.99803946]
[1730539179820,3.48745,2504.0,2503.9,3.27769946]
[1730539180017,3.2078,2504.0,2503.9,3.27769946]
[1730539180931,1.63114,2504.1,2503.9,3.47756716]
[1730539181131,4.83894,2504.1,2504.0,1.74885635]
[1730539181334,4.83894,2504.1,2504.0,2.17885635]
[1730539181633,1.63114,2504.1,2504.0,2.17885635]
[1730539181835,4.83894,2504.1,2504.0,2.17885635]
[1730539182224,4.83894,2504.1,2504.0,2.45850635]
[1730539183330,4.83894,2504.1,2504.0,2.45850725]
[1730539183537,4.83894,2504.1,2504.0,2.17885725]
[1730539183538,1.63114,2504.1,2504.0,2.17885725]
[1730539183731,4.83894,2504.1,2504.0,2.17885725]
[1730539183931,4.83894,2504.1,2504.0,2.45850725]
[1730539184329,4.83894,2504.1,2504.0,2.17885725]
[1730539184632,4.83894,2504.1,2504.0,2.45850725]
[1730539186136,1.63114,2504.1,2504.0,2.45850725]
[1730539186435,4.83894,2504.1,2504.0,2.45850725]
[1730539187737,4.83894,2504.1,2504.0,2.45850829]
[1730539188329,4.83894,2504.1,2504.0,3.70769402]
[1730539189333,1.63114,2504.1,2504.0,3.70769402]
[1730539189526,3.2078,2504.1,2504.0,5.1483442]
[1730539189734,3.2078,2504.1,2504.0,5.77930936]
[1730539190137,3.2078,2504.1,2504.0,6.40337091]
[1730539190341,3.2078,2504.1,2504.0,5.77930936]
[1730539190638,3.2078,2504.1,2504.0,9.77290936]
[1730539190837,3.2078,2504.1,2504.0,10.39697091]
[1730539191038,3.2078,2504.4,2504.3,0.2796]
[1730539191240,3.2078,2504.4,2504.3,2.02845829]
[1730539191435,3.2078,2504.4,2504.3,3.27745018]
[1730539191736,3.2078,2504.4,2504.3,3.11227402]
[1730539191942,3.2078,2504.4,2504.3,3.73676718]
[1730539192339,3.2078,2504.4,2504.3,9.17021736]
[1730539192645,3.2078,2504.9,2504.8,0.27956]
[1730539192942,3.2078,2504.9,2504.8,1.62368222]
[1730539193437,3.2078,2504.9,2504.8,0.62449316]
[1730539193634,3.48735,2504.9,2504.8,0.62449316]
[1730539194236,3.48735,2504.9,2504.8,0.90405316]
[1730539194237,3.2078,2504.9,2504.8,0.90405316]
[1730539194842,3.48735,2504.9,2504.8,0.90405316]
[1730539195040,3.2078,2504.9,2504.8,0.90405316]
[1730539195245,1.89215018,2505.0,2504.8,0.90405316]
[1730539195448,0.27955,2504.9,2504.8,0.27956]
[1730539195839,3.48735,2504.9,2504.8,0.90395014]
[1730539196338,3.2078,2504.9,2504.6,0.841]
[1730539196543,1.44065018,2504.7,2504.5,0.27958]
[1730539196743,1.11518,2504.6,2504.5,0.27958]
[1730539196941,1.53648,2504.6,2504.5,0.62444353]
[1730539197332,1.2569,2504.6,2504.5,0.62444353]
[1730539197736,1.2569,2504.6,2504.5,0.90403353]
[1730539198538,1.2569,2504.6,2504.5,0.62444353]
[1730539199345,1.2569,2504.6,2504.4,2.14894018]
[1730539199543,1.2569,2504.6,2504.5,0.62443713]
[1730539200542,10.17773018,2504.6,2504.5,0.62443713]
[1730539200748,10.17773018,2504.6,2504.2,2.74295018]
[1730539200749,0.2796,2504.4,2504.2,3.02257018]
[1730539201055,5.90535018,2504.6,2504.3,0.62447803]
[1730539201256,0.27959,2504.5,2504.4,0.62447803]
[1730539201555,0.27959,2504.5,2504.2,3.02256018]
[1730539201745,0.27959,2504.5,2504.3,0.62449151]
[1730539201947,0.27959,2504.5,2504.2,3.02256018]
[1730539202142,0.27959,2504.5,2504.3,0.6244941]
[1730539202357,0.2796,2504.5,2504.2,3.02256018]
[1730539202559,0.2796,2504.4,2504.2,3.02256018]
[1730539202749,0.2796,2504.4,2504.3,0.62448231]
[1730539203349,0.2796,2504.4,2504.2,3.02256018]
[1730539203557,0.2796,2504.4,2504.2,2.18156018]
[1730539203856,0.27961,2504.3,2504.1,1.72028018]
[1730539204045,0.4311,2504.2,2504.1,1.72028018]
[1730539205347,0.4311,2504.2,2504.1,1.44065018]
[1730539205554,0.4311,2504.2,2504.1,1.72028018]
[1730539205555,1.3402,2504.2,2504.1,1.72028018]
[1730539209156,1.61983,2504.2,2504.0,3.2078]
[1730539209464,1.61983,2504.2,2504.0,3.48744]
[1730539210359,1.3402,2504.2,2504.1,1.90337823]
[1730539210864,1.3402,2504.2,2504.1,1.62374823]
[1730539211057,1.61982,2504.2,2504.1,1.62374823]
[1730539212562,1.3402,2504.2,2504.1,1.90337823]
[1730539213358,1.3402,2504.2,2504.1,1.90335441]
[1730539213761,1.3402,2504.2,2504.1,0.27963]
[1730539213966,1.3402,2504.2,2504.1,1.90335538]
[1730539215459,1.3402,2504.2,2504.1,1.62372538]
[1730539215659,1.61982,2504.2,2504.1,1.62372538]
[1730539216259,1.61982,2504.2,2504.1,0.62450976]
[1730539216567,1.61982,2504.2,2504.1,1.62374863]
[1730539216969,1.61982,2504.2,2504.1,0.62450976]
[1730539217266,1.61982,2504.2,2504.0,3.2078]
[1730539217267,1.61983,2504.2,2504.0,3.2078]
[1730539217568,1.61983,2504.2,2504.1,0.62452636]
[1730539217569,1.61982,2504.2,2504.1,0.62452636]
[1730539218465,6.77445018,2504.2,2503.7,3.6532]
[1730539218667,0.27966,2503.9,2503.8,0.62457903]
[1730539219167,0.70956,2503.9,2503.8,0.62457903]
[1730539219872,0.70956,2503.9,2503.8,0.90424903]
[1730539219873,0.4299,2503.9,2503.8,0.90424903]
[1730539221770,0.4299,2503.9,2503.8,2.34489921]
[1730539224070,0.70956,2503.9,2503.8,2.06522921]
[1730539224557,0.70956,2503.9,2503.6,4.4856]